bitfinex-derivatives/quotes_ETHF0:USTF0_20251001
["timestamp","ask_amount","ask_price","bid_price","bid_amount"]
[1759347920104,13.4501426,4335.5,4335.4,1.16207]
[1759347920303,17.99019121,4335.5,4335.4,1.16207]
[1759347921306,17.99019121,4335.5,4335.4,0.73537]
[1759347921307,18.00499121,4335.5,4335.4,0.73537]
[1759347922809,18.00499121,4335.5,4335.4,1.06076046]
[1759347923109,18.00499121,4335.5,4335.4,0.74036046]
[1759347923606,18.25999121,4335.5,4335.4,0.74036046]
[1759347924215,18.67495121,4335.5,4335.4,0.74036046]
[1759347924509,18.25999121,4335.5,4335.4,0.74036046]
[1759347924705,18.67495121,4335.5,4335.4,0.74036046]
[1759347925107,23.67495121,4335.5,4335.4,1.05811928]
[1759347925703,23.67495121,4335.5,4335.4,0.73272882]
[1759347926104,23.67495121,4335.5,4335.4,1.14769882]
[1759347926308,23.67495121,4335.5,4335.4,0.73272882]
[1759347926810,10.23940686,4334.7,4334.5,1.74896441]
[1759347927011,3.4628,4335.0,4334.9,0.41502]
[1759347927205,3.87781,4335.0,4334.9,0.23217767]
[1759347927411,3.87781,4335.0,4334.4,0.41507]
[1759347927412,18.70220686,4335.0,4333.8,3.2078]
[1759347927610,0.00293574,4335.5,4333.8,3.2078]
[1759347927611,1.03746,4335.3,4334.5,1.40163192]
[1759347927808,3.2078,4334.6,4334.5,0.98657192]
[1759347928008,13.70220686,4334.6,4334.5,0.98657192]
[1759347928209,18.70220686,4334.6,4334.5,0.1767]
[1759347928914,18.70220686,4334.6,4334.5,0.6315]
[1759347929212,18.70220686,4334.6,4334.5,1.4423881]
[1759347930411,13.70120686,4334.6,4334.5,1.4423881]
[1759347930616,3.2078,4335.1,4335.0,1.17241]
[1759347930916,3.2078,4335.1,4335.0,2.43926926]
[1759347931115,13.44720686,4335.1,4335.0,1.62721]
[1759347932209,10.23940686,4335.1,4335.0,1.62721]
[1759347935417,10.23940686,4335.1,4335.0,1.62721]
[1759347938827,10.23940686,4335.1,4335.0,2.28753154]
[1759347939922,0.66898,4335.3,4335.2,0.41499]
[1759347940123,0.66898,4335.3,4335.2,3.16714878]
[1759347940424,10.90838686,4335.3,4335.2,3.16714878]
[1759347940723,10.90838686,4335.3,4335.2,1.53011154]
[1759347944836,10.49340686,4335.3,4335.2,1.53011154]
[1759347945429,10.90838686,4335.3,4335.2,1.11512154]
[1759347945631,10.90838686,4335.3,4335.2,1.47888151]
[1759347945833,15.90838686,4335.3,4335.2,1.47888151]
[1759347946437,15.90838686,4335.3,4335.2,0.66032154]
[1759347946739,0.415,4335.1,4335.0,1.45005997]
[1759347947043,14.11420686,4335.1,4335.0,1.45005997]
[1759347947638,14.11420686,4335.1,4335.0,0.6315]
[1759347954342,14.11420686,4335.1,4335.0,1.45035445]
[1759347955444,14.11220686,4335.1,4335.0,1.74125445]
[1759347958250,14.11220686,4335.1,4335.0,0.6315]
[1759347958848,14.11220686,4335.1,4335.0,1.25779647]
[1759347960344,10.48940686,4335.1,4335.0,1.99550647]
[1759347960645,10.48940686,4335.1,4335.0,2.81436092]
[1759347960854,10.90440686,4335.1,4335.0,2.81436092]
[1759347961644,10.90440686,4335.1,4335.0,1.99550647]
[1759347962344,10.48940686,4335.1,4335.0,1.99550647]
[1759347962544,10.90440686,4335.1,4335.0,1.99550647]
[1759347962741,10.90440686,4335.1,4335.0,2.29580647]
[1759347962938,0.25,4335.1,4335.0,3.11466092]
[1759347963145,0.25,4335.1,4335.0,2.29580647]
[1759347963541,0.41789574,4335.5,4335.4,0.41497]
[1759347963747,0.66689574,4335.5,4335.4,1.82476647]
[1759347964151,10.9063026,4335.5,4335.4,1.40979647]
[1759347964750,10.9063026,4335.5,4335.4,1.82476647]
[1759347964949,1.0371,4336.8,4336.6,0.4608]
[1759347965158,0.66385,4336.7,4336.6,0.4608]
[1759347965348,0.66385,4336.7,4336.6,1.08686199]
[1759347965853,0.66647149,4336.7,4336.6,1.08867894]
[1759347966351,0.41491,4336.1,4336.0,0.09434461]
[1759347966552,0.41494,4335.7,4335.5,0.1841]
[1759347966749,12.3331026,4335.6,4335.5,0.1841]
[1759347967260,26.0731026,4335.6,4335.5,0.18703622]
[1759347968456,26.0731026,4335.6,4335.5,0.64783622]
[1759347969853,17.1968,4335.6,4335.5,0.64783622]
[1759347970258,26.0731026,4335.6,4335.5,0.64783622]
[1759347971559,26.4880526,4335.6,4335.5,0.64783622]
[1759347971948,12.7470526,4335.6,4335.5,0.64783622]
[1759347972458,22.2170526,4335.6,4335.5,0.64783622]
[1759347978852,17.4070526,4335.6,4335.5,0.64783622]
[1759347979156,3.62275,4335.6,4335.5,1.27083622]
[1759347979361,3.86975,4335.6,4335.5,1.27083622]
[1759347980860,3.86975,4335.6,4335.5,1.68579622]
[1759347981759,3.86975,4335.6,4335.5,2.29988028]
[1759347981959,3.86975,4335.6,4335.5,1.88492028]
[1759347982456,3.2078,4335.6,4335.5,2.29988028]
[1759347982665,3.62271,4336.1,4336.0,1.3062]
[1759347982865,3.86971,4336.1,4336.0,1.3062]
[1759347985862,12.7460126,4336.1,4336.0,0.6651]
[1759347987270,12.7460126,4336.1,4336.0,0.9869]
[1759347989972,12.7460126,4336.1,4336.0,0.6651]
[1759347994162,0.41501,4335.1,4335.0,0.4985]
[1759347994367,0.66101,4335.1,4335.0,0.4985]
[1759347995170,0.66101,4335.1,4335.0,0.50073024]
[1759347996073,9.5373126,4335.1,4335.0,0.50073024]
[1759347996273,9.5373126,4335.1,4335.0,0.97473024]
[1759347998679,9.5373126,4335.1,4335.0,0.65293024]
[1759348002078,9.5373126,4335.1,4335.0,0.47623024]
[1759348003377,9.5373126,4335.1,4335.0,0.67173024]
[1759348004271,9.5373126,4335.1,4335.0,0.99353024]
[1759348005382,9.5373126,4335.1,4335.0,1.30593024]
[1759348006480,9.5373126,4335.1,4335.0,0.99353024]
[1759348007986,9.5373126,4335.1,4335.0,0.67173024]
[1759348008189,9.5373126,4335.1,4335.0,0.00223024]
[1759348009083,9.5373126,4335.1,4335.0,0.47623024]
[1759348012186,0.41506,4334.6,4334.5,0.1841]
[1759348012477,0.65906,4334.6,4334.5,0.5059]
[1759348012683,0.65906,4334.6,4334.5,0.9799]
[1759348013081,9.5353626,4334.6,4334.5,0.66084805]
[1759348013589,0.4151,4334.1,4334.0,0.80918888]
[1759348013781,9.5354026,4334.1,4334.0,1.11658888]
[1759348013982,0.6591,4334.1,4334.0,1.60378888]
[1759348014585,0.6591,4334.1,4334.0,1.92980818]
[1759348017578,0.41509,4334.3,4334.2,0.6313]
[1759348017885,0.6715,4335.4,4335.3,0.3074]
[1759348018080,1.85157,4335.4,4335.0,0.1827]
[1759348018277,0.6141,4335.1,4335.0,0.814]
[1759348018481,10.5105126,4335.1,4335.0,1.3012]
[1759348019182,0.41501,4335.1,4335.0,1.3012]
[1759348019389,0.65901,4335.1,4335.0,1.3012]
[1759348019980,0.96271,4335.1,4335.0,1.3012]
[1759348020391,0.65901,4335.1,4335.0,1.3012]
[1759348020588,10.5105126,4335.1,4335.0,1.3012]
[1759348020892,10.1494126,4335.1,4335.0,1.3012]
[1759348023187,0.65901,4335.1,4335.0,6.3012]
[1759348023389,0.65901,4335.1,4335.0,1.91468712]
[1759348023590,1.27311,4335.1,4335.0,1.91468712]
[1759348024892,1.63421,4335.1,4335.0,1.40808712]
[1759348025089,1.27311,4335.1,4335.0,1.3012]
[1759348026190,0.96271,4335.1,4335.0,1.91468712]
[1759348027493,1.02905,4335.7,4335.6,0.3074]
[1759348027689,1.27205,4335.7,4335.6,1.1185]
[1759348028588,0.65795,4335.7,4335.6,1.1185]
[1759348029096,0.96165,4335.7,4335.6,1.1185]
[1759348031091,1.27205,4335.7,4335.6,1.1185]
[1759348031400,10.67315,4335.7,4335.6,1.1185]
[1759348031697,10.31205,4335.7,4335.6,1.1185]
[1759348032397,1.0291,4335.2,4335.1,1.1185]
[1759348032699,1.2721,4335.2,4335.1,1.1185]
[1759348034500,0.243,4335.2,4335.1,1.1185]
[1759348034699,0.9617,4335.2,4335.1,1.1185]
[1759348035503,0.5467,4335.2,4335.1,1.1185]
[1759348035694,0.9617,4335.2,4335.1,1.1185]
[1759348038001,1.64161603,4337.4,4337.0,0.1827]
[1759348038202,1.64161603,4337.4,4336.0,3.2078]
[1759348038203,8.61741876,4340.5,4337.1,36.162]
[1759348038391,0.24,4340.5,4339.6,10.36457]
[1759348038591,0.24,4340.5,4340.4,0.4145]
[1759348038802,0.258,4340.9,4340.8,0.41446]
[1759348039097,0.26028707,4340.9,4340.8,1.3752913]
[1759348039400,0.00228707,4340.9,4340.8,1.3752913]
[1759348039597,0.26028707,4340.9,4340.8,0.9608313]
[1759348039794,10.8652176,4340.9,4340.8,0.9608313]
[1759348039996,11.3326176,4340.9,4340.8,1.56814882]
[1759348040192,19.8726176,4340.9,4340.8,0.9608313]
[1759348040394,19.8726176,4340.9,4340.8,0.63451102]
[1759348040599,55.8556176,4340.9,4340.8,0.63451102]
[1759348041293,0.2432,4340.0,4339.7,0.6057538]
[1759348041499,0.6488,4339.8,4339.7,0.6057538]
[1759348041702,0.6488,4339.8,4339.1,0.0177]
[1759348041899,12.1712,4339.8,4339.1,0.0177]
[1759348042103,0.41457,4339.7,4339.1,0.0177]
[1759348042404,12.58576,4339.8,4339.1,0.01990315]
[1759348042902,0.41458,4339.6,4339.2,0.3213159]
[1759348043100,0.9068,4339.5,4339.3,0.3213159]
[1759348043301,0.9068,4339.5,4339.4,0.3213159]
[1759348043501,3.2078,4340.1,4339.5,0.2261]
[1759348043705,0.259,4340.0,4339.7,0.6595]
[1759348043904,0.8963,4339.9,4339.8,0.3213159]
[1759348044196,0.8963,4339.9,4339.8,0.9808159]
[1759348046306,0.8963,4339.9,4339.8,1.8143159]
[1759348047806,0.259,4339.9,4339.8,1.8143159]
[1759348048302,0.259,4339.9,4339.8,1.493]
[1759348048501,0.259,4339.9,4339.8,1.81088247]
[1759348048699,1.3371,4339.9,4339.8,1.15138247]
[1759348049103,1.7743,4339.9,4339.8,1.15138247]
[1759348050204,1.7743,4339.9,4339.8,0.72458247]
[1759348050604,11.77191301,4339.9,4339.8,0.31788247]
[1759348053406,11.77191301,4339.9,4339.8,1.05564539]
[1759348053907,17.57191301,4339.9,4339.8,1.05564539]
[1759348055206,0.41466,4338.7,4338.6,1.20696506]
[1759348055405,2.18596,4338.7,4338.6,0.72711703]
[1759348056309,9.27219312,4338.7,4338.6,0.3226684]
[1759348057109,9.27219312,4338.7,4338.6,0.7293684]
[1759348059100,9.01619312,4338.7,4338.6,0.7293684]
[1759348059303,9.27219312,4338.7,4338.6,0.7293684]
[1759348059504,2.18596,4338.7,4338.6,0.7293684]
[1759348060814,1.92996,4338.7,4338.6,0.7293684]
[1759348061003,2.18596,4338.7,4338.6,0.7293684]
[1759348062017,1.92996,4338.7,4338.6,0.7293684]
[1759348062312,2.18496,4338.7,4338.6,0.7293684]
[1759348063305,2.18496,4338.7,4338.6,0.3226684]
[1759348067220,2.18496,4338.7,4338.6,1.31716834]
[1759348067918,2.18496,4338.7,4338.6,1.00081527]
[1759348070518,2.18396,4338.7,4338.6,1.00081527]
[1759348072418,9.27019312,4338.7,4338.6,1.00081527]
[1759348072920,9.27019312,4338.7,4338.6,0.68039824]
[1759348073120,15.54019312,4338.7,4338.6,0.68039824]
[1759348073426,1.5153,4337.8,4337.7,0.82146]
[1759348073722,1.7683,4337.8,4337.7,0.82146]
[1759348074120,1.7683,4337.8,4337.7,0.4067]
[1759348074417,9.27119739,4337.8,4337.7,0.00189985]
[1759348075422,9.27119739,4337.8,4337.7,1.22544175]
[1759348075623,8.85644739,4337.8,4337.7,1.22544175]
[1759348076016,9.27119739,4337.8,4337.7,1.22544175]
[1759348077820,9.27119739,4337.8,4337.7,1.64020175]
[1759348078322,8.85644739,4337.8,4337.7,2.05550175]
[1759348079118,9.27119739,4337.8,4337.7,2.05550175]
[1759348079626,20.79759739,4337.8,4337.7,0.83195985]
[1759348080120,20.54459739,4337.8,4337.7,0.83195985]
[1759348080318,20.38184739,4337.8,4337.7,0.83195985]
[1759348080623,20.79659739,4337.8,4337.7,0.83195985]
[1759348081630,20.79659739,4337.8,4337.7,2.05550175]
[1759348081928,20.79659739,4337.8,4337.7,0.83195985]
[1759348082328,20.79659739,4337.8,4337.7,2.05550175]
[1759348082621,20.79659739,4337.8,4337.7,1.64074175]
[1759348082831,20.79659739,4337.8,4337.7,2.05550175]
[1759348083126,24.71279152,4337.8,4337.7,2.05550175]
[1759348083322,24.71279152,4337.8,4337.7,1.22544175]
[1759348083526,24.71279152,4337.8,4337.7,0.00189985]
[1759348083921,29.71279152,4337.8,4337.7,0.00189985]
[1759348084317,29.46079152,4337.8,4337.7,0.00189985]
[1759348084733,24.46079152,4337.8,4337.7,0.41719985]
[1759348085023,24.71179152,4337.8,4337.7,0.41719985]
[1759348085230,24.71179152,4337.8,4337.7,0.63101441]
[1759348085432,1.08001427,4337.8,4337.7,2.56567441]
[1759348085627,0.93221427,4337.8,4337.7,3.78921631]
[1759348085825,0.25291427,4337.8,4337.7,3.78921631]
[1759348086028,0.25291427,4337.8,4337.7,2.56567441]
[1759348086229,0.00191427,4337.8,4337.7,2.56567441]
[1759348086626,0.25291427,4337.8,4337.7,2.56567441]
[1759348088128,1.1284,4339.4,4339.3,0.4508]
[1759348088430,1.5586,4339.4,4339.3,0.62911456]
[1759348088627,8.64483312,4339.4,4339.3,0.62911456]
[1759348089133,8.64663127,4339.4,4339.3,0.62911456]
[1759348089632,8.89763127,4339.4,4339.3,1.04441456]
[1759348090026,8.89763127,4339.4,4339.3,0.62911456]
[1759348090634,9.31223127,4339.4,4339.0,0.41463]
[1759348090835,5.47479413,4339.2,4339.1,0.4153]
[1759348091234,1.5586,4339.2,4339.1,0.4153]
[1759348091432,1.8096,4339.2,4339.1,0.4153]
[1759348095838,1.5586,4338.7,4338.6,1.2304107]
[1759348096035,1.8086,4338.7,4338.6,0.8157407]
[1759348096241,0.8793,4338.2,4338.1,1.2304507]
[1759348096532,1.8086,4338.2,4338.0,0.8157407]
[1759348096929,0.6793,4338.1,4338.0,1.2304707]
[1759348097235,0.6793,4338.1,4338.0,1.6457707]
[1759348097236,1.5586,4338.1,4338.0,1.6457707]
[1759348099832,1.97332,4338.1,4338.0,1.6457707]
[1759348100026,1.5586,4338.1,4338.0,1.6457707]
[1759348101238,1.97332,4338.1,4338.0,1.6457707]
[1759348101439,1.5586,4338.1,4338.0,2.0501707]
[1759348101639,0.9293,4338.1,4338.0,2.6971707]
[1759348102338,1.3642,4338.1,4338.0,2.6971707]
[1759348104736,1.3632,4338.1,4338.0,2.6971707]
[1759348106338,1.3632,4338.1,4338.0,1.88143]
[1759348106736,1.2624,4339.0,4338.9,1.27004]
[1759348106932,1.2624,4339.0,4338.9,1.89194]
[1759348107432,1.6658,4339.0,4338.9,1.27004]
[1759348107833,1.9148,4339.0,4338.9,1.27004]
[1759348108034,1.9148,4339.0,4338.9,1.89194]
[1759348109437,0.00179815,4339.4,4339.3,0.41461]
[1759348109743,5.58749228,4339.4,4339.3,1.27001]
[1759348109930,1.67129815,4339.4,4339.3,1.27001]
[1759348110530,0.60849815,4339.4,4339.3,1.27001]
[1759348110735,0.85749815,4339.4,4339.3,1.89191]
[1759348110935,1.67129815,4339.4,4339.3,1.27001]
[1759348111341,8.75753127,4339.4,4339.3,0.41461]
[1759348111840,8.75753127,4339.4,4339.3,0.84451]
[1759348112037,8.75753127,4339.4,4339.3,1.27001]
[1759348113037,8.50853127,4339.4,4339.3,1.27001]
[1759348113242,8.75753127,4339.4,4339.3,1.27001]
[1759348113444,8.75653127,4339.4,4339.3,1.27001]
[1759348117349,8.75653127,4339.4,4339.3,0.84451]
[1759348117645,1.3264,4339.5,4339.4,1.8919]
[1759348118436,1.3264,4339.5,4339.3,1.22361105]
[1759348118634,19.42243312,4339.4,4339.3,0.4146]
[1759348118842,23.58662725,4339.4,4339.3,1.02655706]
[1759348119042,7.90003312,4339.4,4339.3,1.8919]
[1759348119246,1.0618,4339.4,4339.3,1.8919]
[1759348119443,1.0618,4339.4,4339.3,2.70780943]
[1759348119743,11.52442553,4339.5,4339.3,2.70780943]
[1759348119954,11.52442553,4339.5,4339.4,2.70751426]
[1759348120146,11.77242553,4339.5,4339.4,2.70751426]
[1759348121046,11.77242553,4339.5,4339.4,1.4773]
[1759348121047,13.87211553,4339.5,4339.4,1.4773]
[1759348121241,13.87211553,4339.5,4339.4,0.8554]
[1759348121647,1.4205,4339.3,4339.2,1.24551426]
[1759348121948,5.33669413,4339.3,4339.2,1.86741426]
[1759348122248,12.83753725,4339.3,4339.2,1.24551426]
[1759348122442,12.42292725,4339.3,4339.2,1.86741426]
[1759348122646,12.67092725,4339.3,4339.2,2.29291426]
[1759348122845,13.08553725,4339.3,4339.2,2.29291426]
[1759348123444,13.08553725,4339.3,4339.2,1.4773]
[1759348124141,13.08553725,4339.3,4339.2,0.8554]
[1759348124346,12.67092725,4339.3,4339.2,1.89192]
[1759348125653,12.42292725,4339.3,4339.2,1.89192]
[1759348125852,1.4205,4339.3,4339.2,1.89192]
[1759348126154,1.6675,4339.3,4339.2,1.89192]
[1759348126847,1.6675,4339.3,4339.2,1.27002]
[1759348127462,1.6675,4339.3,4339.2,1.89192]
[1759348129640,1.4205,4339.3,4339.2,1.89192]
[1759348129850,1.6675,4339.3,4339.2,1.89192]
[1759348130751,1.6675,4339.3,4339.2,0.84452]
[1759348132554,1.6675,4339.3,4339.2,1.46642]
[1759348133055,1.6675,4339.3,4339.2,1.89192]
[1759348134153,1.6675,4339.3,4339.2,3.11553105]
[1759348135050,1.6665,4339.3,4339.2,3.11553105]
[1759348135255,1.6665,4339.3,4339.2,1.89192]
[1759348135653,1.6665,4339.3,4339.2,3.11773146]
[1759348135857,1.6665,4339.3,4339.2,0.41462]
[1759348136057,2.08111,4339.3,4339.2,1.64051933]
[1759348136359,35.71372725,4339.3,4339.2,1.64051933]
[1759348136666,35.71372725,4339.3,4339.2,2.06791933]
[1759348137361,35.71372725,4339.3,4339.2,0.84202]
[1759348138359,35.71372725,4339.3,4339.2,2.06791933]
[1759348140557,24.19132725,4339.3,4339.2,1.64051933]
[1759348141656,24.19132725,4339.3,4339.2,1.22589933]
[1759348141864,1.0655,4339.0,4338.9,0.41465]
[1759348142166,6.26933413,4339.0,4338.9,0.41465]
[1759348142364,17.37789413,4339.0,4338.9,0.41465]
[1759348142663,17.79253413,4339.0,4338.9,0.41465]
[1759348143361,17.54753413,4339.0,4338.9,0.41465]
[1759348143567,17.79253413,4339.0,4338.9,0.41465]
[1759348144962,17.37789413,4339.0,4338.9,0.41465]
[1759348145164,17.13289413,4339.0,4338.9,0.41465]
[1759348145365,17.37789413,4339.0,4338.9,0.41465]
[1759348146972,18.46975875,4339.0,4338.9,0.41465]
[1759348147158,18.71475875,4339.0,4338.9,0.41465]
[1759348149975,14.79856462,4339.0,4338.9,0.41465]
[1759348150276,18.71475875,4339.0,4338.9,0.41465]
[1759348150774,18.71475875,4339.0,4338.9,1.02777705]
[1759348151568,19.12939875,4339.0,4338.9,1.02777705]
[1759348151869,18.71475875,4339.0,4338.9,0.41465]
[1759348152070,18.71475875,4339.0,4337.9,0.41474]
[1759348152071,1.6935,4338.0,4337.9,0.41474]
[1759348152266,13.4639,4338.0,4337.9,0.84214]
[1759348153168,13.4639,4338.0,4337.9,1.47844]
[1759348153368,13.4639,4338.0,4337.9,0.84214]
[1759348153578,13.4639,4338.0,4337.9,0.41474]
[1759348153777,18.1038317,4338.0,4337.9,0.41474]
[1759348155477,1.4457,4337.8,4337.7,0.00189985]
[1759348155678,1.6897,4337.8,4337.7,0.00189985]
[1759348155977,13.2161,4337.8,4337.7,0.00189985]
[1759348158878,13.63085,4337.8,4337.7,0.00189985]
[1759348159273,18.2707817,4337.8,4337.7,0.00189985]
[1759348159879,0.8177,4337.1,4337.0,1.466]
[1759348160080,1.6897,4337.1,4337.0,1.466]
[1759348160973,13.63332,4337.1,4337.0,0.00267086]
[1759348161173,18.2732517,4337.1,4337.0,0.00267086]
[1759348161877,0.2484,4336.0,4335.9,0.4133]
[1759348162076,1.3583,4336.0,4335.9,0.4133]
[1759348162280,1.9773,4336.0,4335.9,0.4133]
[1759348162676,0.06714145,4338.8,4338.5,0.2626]
[1759348162877,16.31009413,4338.8,4338.1,0.6336]
[1759348163076,0.8659,4338.2,4338.1,1.0469]
[1759348163275,1.1169,4338.2,4338.1,1.0469]
[1759348163583,1.39603757,4338.2,4337.6,0.6773]
[1759348163774,15.44179413,4338.1,4337.6,1.5198]
[1759348164078,0.6853,4338.0,4337.9,1.5198]
[1759348164483,0.6853,4338.0,4337.9,1.93454]
[1759348164678,0.4343,4338.0,4337.9,1.93454]
[1759348165772,0.68414274,4338.2,4338.1,1.25722]
[1759348165977,4.60033687,4338.2,4338.1,1.93452]
[1759348166179,0.68414274,4338.2,4338.1,1.93452]
[1759348167978,2.04058031,4338.2,4338.1,1.09202]
[1759348168978,2.04058031,4338.2,4338.1,1.50752]
[1759348170986,1.41048031,4338.2,4338.1,1.93452]
[1759348171984,2.04058031,4338.2,4338.1,1.93452]
[1759348172184,2.04058031,4338.2,4338.1,0.6773]
[1759348173080,0.41473,4338.1,4337.8,1.09204]
[1759348173285,1.79073757,4337.9,4337.8,0.6773]
[1759348173480,1.41063757,4337.9,4337.7,0.41476]
[1759348173681,16.95499413,4337.8,4337.7,0.41476]
[1759348173881,16.95499413,4337.8,4337.7,1.09206]
[1759348174084,5.42779413,4337.8,4337.7,1.09206]
[1759348174383,5.42779413,4337.8,4337.7,1.50756]
[1759348175579,16.95419413,4337.8,4337.7,1.50756]
[1759348178083,16.95419413,4337.8,4337.7,4.71536]
[1759348179487,17.36894413,4337.8,4337.7,3.62256]
[1759348179789,17.36894413,4337.8,4337.7,3.2078]
[1759348182395,17.36894413,4337.8,4337.7,3.8851]
[1759348183496,17.6480817,4337.8,4337.7,3.2078]
[1759348185789,0.8815,4337.3,4337.2,1.90932499]
[1759348185997,0.8815,4337.3,4337.2,1.5198]
[1759348185998,1.7596,4337.3,4337.2,1.5198]
[1759348186190,17.4829317,4337.3,4337.2,1.5198]
[1759348188098,17.8977317,4337.3,4337.2,1.5198]
[1759348189602,0.6301,4339.4,4338.2,0.6773]
[1759348189898,0.4343,4339.1,4339.0,0.6773]
[1759348190203,1.5116,4339.1,4339.0,4.7276]
[1759348190403,13.2858,4339.1,4339.0,3.6233]
[1759348190604,16.72465033,4339.1,4339.0,3.62555652]
[1759348196198,16.72465033,4339.1,4339.0,4.71395652]
[1759348196398,16.72465033,4339.1,4339.0,3.62555652]
[1759348196599,16.72465033,4339.1,4339.0,3.21005652]
[1759348197203,16.72465033,4339.1,4339.0,3.65615652]
[1759348199002,16.72465033,4339.1,4339.0,3.21005652]
[1759348199601,16.72465033,4339.1,4339.0,3.65615652]
[1759348200101,16.25165033,4339.1,4339.0,3.65615652]
[1759348200304,0.41451,4340.4,4339.1,0.6614]
[1759348200504,0.0214,4340.1,4340.0,1.7881]
[1759348200706,3.70822682,4340.1,4339.9,3.2078]
[1759348200899,0.0214,4339.7,4339.6,0.6614]
[1759348201201,0.0214,4339.5,4339.4,0.6614]
[1759348201403,0.2704,4339.5,4339.4,0.6614]
[1759348201612,15.22962682,4339.5,4339.4,0.6614]
[1759348203705,0.0281,4339.3,4339.2,0.6614]
[1759348204014,3.71392682,4339.3,4339.2,0.6614]
[1759348204211,15.22962682,4339.3,4339.2,0.6614]
[1759348206399,15.23632682,4339.3,4339.2,0.6614]
[1759348206605,0.0281,4339.1,4339.0,0.00225652]
[1759348206805,15.23712682,4339.1,4339.0,0.00225652]
[1759348207200,14.98812682,4339.1,4339.0,0.00225652]
[1759348207401,15.23712682,4339.1,4339.0,0.00225652]
[1759348207900,20.23712682,4339.1,4339.0,0.00225652]
[1759348208100,15.23712682,4339.1,4339.0,0.00225652]
[1759348208307,15.23712682,4339.1,4339.0,0.66365652]
[1759348208508,15.23712682,4339.1,4339.0,0.00225652]
[1759348208811,20.65175682,4339.1,4339.0,0.00225652]
[1759348209704,0.4337,4337.6,4337.5,1.07852499]
[1759348209905,0.6817,4337.6,4337.5,1.1267]
[1759348210210,10.01461603,4337.6,4337.5,0.4461]
[1759348210608,1.4715,4337.4,4337.3,3.2078]
[1759348210803,1.7195,4337.4,4337.3,3.20997415]
[1759348212506,1.7195,4337.4,4337.3,3.65607415]
[1759348213011,1.7195,4337.4,4337.3,0.00217415]
[1759348214904,1.7195,4337.4,4336.7,3.2078]
[1759348214905,0.4337,4336.8,4336.7,3.2078]
[1759348215210,0.4337,4336.8,4336.4,0.4461]
[1759348215211,1.7257,4336.5,4336.4,0.4461]
[1759348215512,1.9737,4336.5,4336.4,0.4461]
[1759348215712,10.26881603,4336.5,4336.4,0.4461]
[1759348215912,10.27099316,4336.5,4336.4,1.10988207]
[1759348216409,10.27099316,4336.5,4336.4,1.52848207]
[1759348217503,10.27099316,4336.5,4336.4,0.00238207]
[1759348217706,14.12269998,4336.5,4336.4,0.00238207]
[1759348217909,0.6324,4338.6,4336.5,0.4045]
[1759348218212,0.6324,4338.6,4338.5,0.8647]
[1759348218213,1.0661,4338.6,4338.5,0.8647]
[1759348218416,1.5405,4338.6,4338.5,0.8647]
[1759348218607,1.5405,4338.6,4338.5,5.8647]
[1759348219003,1.54212608,4338.6,4338.5,5.8647]
[1759348219214,1.54212608,4338.6,4338.5,6.5234]
[1759348219509,1.47312608,4338.6,4338.5,0.8647]
[1759348219811,1.06772608,4338.6,4338.5,1.5234]
[1759348220012,1.72712608,4338.6,4338.5,0.8647]
[1759348220515,2.31199,4338.5,4338.4,3.2078]
[1759348220809,0.41473,4338.1,4337.9,3.2078]
[1759348221116,2.1513,4338.0,4337.9,4.8342]
[1759348223015,0.254,4338.0,4337.9,4.8342]
[1759348223907,2.2149,4338.0,4337.9,4.1235]
[1759348224508,2.2149,4338.0,4337.9,4.8087]
[1759348224717,1.9256,4338.0,4337.9,4.8087]
[1759348227622,2.2149,4338.0,4337.9,4.8087]
[1759348228118,1.4405,4338.0,4337.9,4.8087]
[1759348228818,0.254,4338.0,4337.9,4.8087]
[1759348229116,1.1865,4338.2,4338.1,0.9323]
[1759348229319,0.00162608,4338.6,4338.1,1.6175]
[1759348229521,0.00162608,4338.6,4338.5,5.0874]
[1759348231018,0.25462608,4338.6,4338.5,5.0874]
[1759348231223,0.96612608,4338.6,4338.5,5.43632425]
[1759348231721,0.96612608,4338.6,4338.5,4.8253]
[1759348231926,1.44112608,4338.6,4338.5,4.8253]
[1759348232921,0.475,4338.1,4338.0,4.75112425]
[1759348233120,1.4395,4338.1,4338.0,4.8253]
[1759348233321,1.9246,4338.1,4338.0,4.75112425]
[1759348233524,1.9246,4338.1,4338.0,4.1401]
[1759348234520,5.36142682,4338.1,4338.0,3.6644]
[1759348234721,5.36142682,4338.1,4338.0,0.4566]
[1759348235726,0.2893,4338.0,4337.7,0.61102425]
[1759348235926,1.6716,4337.6,4337.5,0.4566]
[1759348236125,5.36042682,4337.6,4337.5,0.4566]
[1759348237028,5.36042682,4337.6,4337.5,0.9323]
[1759348238633,5.36042682,4337.6,4337.5,0.4566]
[1759348238831,5.36042682,4337.6,4337.5,0.9323]
[1759348239027,5.36042682,4337.6,4337.5,0.4566]
[1759348239236,2.08639,4337.4,4337.2,0.61102425]
[1759348239433,1.9236,4337.3,4337.2,0.61102425]
[1759348239730,5.36042682,4337.3,4337.2,0.61102425]
[1759348240329,5.77522682,4337.3,4337.1,0.61102425]
[1759348240531,1.6716,4337.1,4337.0,0.61102425]
[1759348240933,1.6716,4337.1,4336.8,0.61102425]
[1759348240934,0.9601,4336.9,4336.8,0.61102425]
[1759348241234,5.10842682,4336.6,4336.5,0.61102425]
[1759348241535,1.9609,4336.5,4336.4,1.07000632]
[1759348241924,1.9609,4336.5,4336.4,0.45898207]
[1759348243122,1.9609,4336.5,4336.4,0.00238207]
[1759348243328,0.9601,4335.4,4335.3,0.61102425]
[1759348243534,4.39692682,4335.4,4335.3,1.6175]
[1759348243732,0.251,4335.4,4335.3,2.22852425]
[1759348243931,0.251,4335.4,4335.3,1.6175]
[1759348244333,0.96540353,4335.4,4335.3,1.61991922]
[1759348244536,1.44040353,4335.4,4335.3,1.61991922]
[1759348244938,1.92550353,4335.4,4335.3,0.93471922]
[1759348245233,1.92550353,4335.4,4335.3,0.00241922]
[1759348246740,0.2893,4334.0,4333.7,1.22410813]
[1759348246934,1.6716,4333.8,4333.7,0.9323]
[1759348247436,4.29190183,4333.8,4333.7,0.9323]
[1759348247625,4.29190183,4333.8,4333.7,0.93459883]
[1759348248841,4.29190183,4333.8,4333.7,0.45889883]
[1759348249041,4.54390183,4333.8,4333.7,0.45889883]
[1759348249644,4.29190183,4333.8,4333.7,0.45889883]